Cogmind - Beta 12 --- EXPLORER MODE // 2024.01.28 @ 19:59:24 Player: Olexender Result: Self-destructed Performance ------------- Evolutions (4) 2000 Regions Visited (11) 2200 Robots Destroyed (63) 315 Value Destroyed (2356) 2356 Prototype IDs (28) 560 Alien Tech Used (0) 0 Bonus (776) 776 TOTAL SCORE: 8207 Bonus ------- High Alert Combat Kills 167 Follower Combat Kills 171 Aligned with FarCom 300 Met Imprinter 300 Friendly Fire -162 Cogmind --------- Core Integrity 655/850 Matter 300/300 Energy 22/100 System Corruption 1% Temperature Warm (102) Movement Walking (120) Location -6/Zion Parts ------- > --- POWER (3) -------- (None) > --- PROPULSION (5) --- Carbon-fiber Leg Improved Surge Thruster > --- UTILITY (5) ------ Improved Cooling System Improved Cooling System Improved Cooling System > --- WEAPON (3) ------- Wave Gun Power Sword > --- INVENTORY (5) ---- Advanced Heat Sink Matter Compressor (229) Improved Field Recycling Unit (0) Self-destruct Interrupter (50) GAL Module Peak State ------------ > --- POWER ------------ Improved Deuterium Engine Angular Momentum Engine Neutrino Core > --- PROPULSION ------- Improved Surge Thruster Flying Fortress v7 > --- UTILITY ---------- Cryofiber Web Advanced Heat Sink Improved Cooling System Reaction Control System Improved Medium Armor Plating > --- WEAPON ----------- Plasma Cannon Enhanced Autogun Hypervelocity Gauss Rifle > --- INVENTORY -------- Improved Surge Thruster Advanced Heat Sink High-capacity Matter Pod Improved Field Recycling Unit Power Sword [Rating: 86] Favorites ----------- Power Light Nuclear Core Engine Light Ion Engine Power Core Light Nuclear Core Propulsion Improved Surge Thruster Leg Carbon-fiber Leg Flight Unit Improved Surge Thruster Utility Improved Cooling System Device Improved Cooling System Storage Medium Storage Unit Processor Advanced Terrain Scan Processor Protection Improved Medium Armor Plating Weapon Plasma Cannon Energy Gun Wave Gun Energy Cannon Plasma Cannon Ballistic Gun Enhanced Autogun Ballistic Cannon Gauss Cannon Launcher Guided Missile Launcher Special Weapon Mining Laser Slashing Weapon Power Sword Build | -11 -10 -10 -10 -9 -8 -8 -7 -6 -6 -6 -6 ------- Run | Jun Mat Min Exi Min Mat Sto Fac Fac Low Low Zio Slots Evolved 9 | . 1 . . . 4 . 2 2 . . . Power 2 | . 1 . . . . . 1 . . . . Propulsion 3 | . . . . . 2 . . 1 . . . Utility 3 | . . . . . 2 . . 1 . . . Weapon 1 | . . . . . . . 1 . . . . Parts Attached 66 | 5 7 . 4 1 10 7 12 3 7 10 . Power 12 | 1 1 . 1 . 1 2 3 . 2 1 . Engine 8 | 1 1 . 1 . . 2 1 . 1 1 . Core 4 | . . . . . 1 . 2 . 1 . . Reactor . | . . . . . . . . . . . . Propulsion 10 | 2 3 . 1 . 1 . . 1 . 2 . Treads . | . . . . . . . . . . . . Leg 3 | 2 . . . . . . . . . 1 . Wheel . | . . . . . . . . . . . . Hover . | . . . . . . . . . . . . Flight 7 | . 3 . 1 . 1 . . 1 . 1 . Utility 26 | 2 . . 1 1 4 4 5 2 4 3 . Device 17 | . . . . 1 2 3 4 2 3 2 . Storage 2 | 1 . . . . . . . . . 1 . Processor 1 | . . . . . . . . . 1 . . Hackware . | . . . . . . . . . . . . Protection 6 | 1 . . 1 . 2 1 1 . . . . Artifact . | . . . . . . . . . . . . Weapon 18 | . 3 . 1 . 4 1 4 . 1 4 . Energy Gun 1 | . . . . . . . . . . 1 . Energy Cannon 3 | . . . . . 1 . 1 . . 1 . Ballistic Gun 4 | . 1 . . . 1 . 2 . . . . Ballistic Cannon 3 | . . . . . 1 . 1 . . 1 . Launcher 2 | . . . . . 1 1 . . . . . Special Weapon 3 | . 2 . 1 . . . . . . . . Impact Weapon . | . . . . . . . . . . . . Slashing Weapon 2 | . . . . . . . . . 1 1 . Piercing Weapon . | . . . . . . . . . . . . Special Melee Weapon . | . . . . . . . . . . . . Unidentified Prototypes 5 | . . . . 1 1 3 . . . . . Parts Lost 12 | . 2 . . . . 1 . . 1 6 2 Power 1 | . . . . . . . . . . 1 . Propulsion 3 | . 1 . . . . . . . . 1 1 Utility 4 | . . . . . . 1 . . 1 2 . Weapon 4 | . 1 . . . . . . . . 2 1 Highest Loss Streak 6 | . 1 . . . . 1 . . 1 6 2 To Critical Strikes . | . . . . . . . . . . . . Average Slot Usage (%) 65 | . 84 62 67 75 59 71 75 71 74 58 55 Engine 6 | . 21 12 12 12 8 7 9 12 10 2 . Core 3 | . . . . . 7 8 10 6 2 3 . Leg 3 | . 17 . . . . . . . . 1 6 Flight 11 | . 7 25 25 25 8 8 7 7 12 11 12 Device 15 | . . . . . 6 17 21 19 22 21 18 Protection 6 | . 12 12 12 12 12 13 7 6 6 3 . Energy Gun 1 | . . . . . . . . . . . 6 Energy Cannon 4 | . . . . . 4 5 6 6 5 3 5 Ballistic Gun 4 | . 2 12 12 12 3 . 11 12 12 6 . Ballistic Cannon 1 | . . . . . 4 5 1 . . 1 . Special Weapon 1 | . 14 . 5 12 1 . . . . . . Slashing Weapon 2 | . . . . . . . . . . 3 6 Naked Turns . | . . . . . . . . . . . . Heaviest Build 54 | 16 21 7 8 8 31 36 50 51 51 54 21 Greatest Support 54 | 20 20 8 8 8 50 50 50 54 54 54 15 Greatest Overweight (x) 1 | . 1 . . . . . . . . 1 1 Average Overweight (x) . | . . . . . . . . . . . . Largest Inventory Capacity 10 | 10 10 5 5 5 5 5 5 5 5 5 5 Average Capacity 5 | 8 8 5 5 5 5 5 5 5 5 5 5 Most Carried 6 | 5 6 5 5 5 5 5 5 5 5 5 5 Average Carried 4 | 2 2 5 4 4 3 4 4 4 4 4 4 Final Capacity 10 | 10 5 5 5 5 5 5 5 5 5 5 5 Final Carried 5 | 2 5 5 4 5 5 5 5 4 4 3 5 Class Distribution -------------------- 45% | Hacker-Mutant 31% | Scavenger-Mutant 14% | Hacker-Skirmisher 7% | Hacker-Tank Dominant Class ---------------- Hacker-Mutant | -10/Materials Hacker-Mutant | -10/Mines Hacker-Mutant | -10/Exiles Hacker-Mutant | -9/Mines Hacker-Mutant | -8/Materials Hacker-Mutant | -8/Storage Hacker-Skirmisher | -7/Factory Hacker-Skirmisher | -6/Factory Hacker-Tank | -6/Lower Caves Hacker-Mutant | -6/Lower Caves Scavenger-Mutant | -6/Zion Resources | -11 -10 -10 -10 -9 -8 -8 -7 -6 -6 -6 -6 ----------- Run | Jun Mat Min Exi Min Mat Sto Fac Fac Low Low Zio Matter Collected 3131 | 216 112 1 . 29 488 479 670 81 247 789 19 Remotely . | . . . . . . . . . . . . Salvage Created 2276 | . 167 . . . 380 406 574 . 222 509 18 Parts 122 | . 14 . . . 27 20 23 . 14 23 1 Haulers Intercepted 1 | . . . . . 1 . . . . . . Recyclers Shooed 1 | . . . . . 1 . . . . . . Parts Field Recycled . | . . . . . . . . . . . . Retrieved Matter . | . . . . . . . . . . . . Parts Self-Destructed . | . . . . . . . . . . . . Prevented . | . . . . . . . . . . . . Kills | -11 -10 -10 -10 -9 -8 -8 -7 -6 -6 -6 -6 ------- Run | Jun Mat Min Exi Min Mat Sto Fac Fac Low Low Zio Combat Hostiles Destroyed 49 | . 6 . . . 8 16 7 . 3 9 . Guns 17 | . 4 . . . 3 . 3 . 2 5 . Cannons 19 | . 2 . . . 1 7 4 . 1 4 . AOE 13 | . . . . . 4 9 . . . . . Classes Destroyed 17 | . 2 . . . 6 5 1 . 2 . 1 Worker 1 | . . . . . 1 . . . . . . Hauler 1 | . . . . . 1 . . . . . . Recycler 2 | . 1 . . . . . 1 . . . . Mechanic 1 | . . . . . . 1 . . . . . Operator 3 | . . . . . 1 1 1 . . . . Watcher 5 | . . . . . 1 2 2 . . . . Swarmer 11 | . 6 . . . 3 2 . . . . . Grunt 16 | . . . . . 3 6 2 . 1 4 . Brawler 1 | . . . . . . 1 . . . . . Duelist 5 | . . . . . . 2 . . . 3 . Protector 1 | . . . . . . 1 . . . . . Sentry 8 | . . . . . 3 3 1 . . 1 . Hunter 3 | . . . . . . 1 2 . . . . Programmer 2 | . . . . . . . 2 . . . . Behemoth 2 | . . . . . . . . . 1 1 . Tinkerer 1 | . . . . . . . . . . . 1 Mutant 1 | . . . . . . . . . 1 . . Best Kill Streak 6 | . 3 . . . 6 6 6 . 1 4 1 Combat Bots Only 5 | . 2 . . . 5 5 4 . 1 4 . Max Kills in Single Turn 3 | . 1 . . . 2 3 2 . 1 1 1 Gunslinging . | . . . . . . . . . . . . Exploded 2 | . . . . . 2 2 . . . . . Melee . | . . . . . . . . . . . . Uniques/NPCs Destroyed . | . . . . . . . . . . . . Combat | -11 -10 -10 -10 -9 -8 -8 -7 -6 -6 -6 -6 -------- Run | Jun Mat Min Exi Min Mat Sto Fac Fac Low Low Zio Damage Taken 2864 | . 154 . . . 259 548 424 . 301 1007 171 Core 330 | . 22 . . . 21 68 24 . 22 142 31 Absorbed by Shields . | . . . . . . . . . . . . Redirected to Shielding 101 | . . . . . . 101 . . . . . Core Remaining (%) 92 | 100 . . . 91 . 83 96 . . . . Volleys Fired 221 | . 24 1 . . 23 51 38 . 18 60 6 Largest 3 | . 2 1 . . 2 2 3 . 3 3 1 Hottest 158 | . 120 20 . . 128 128 138 . 138 158 81 Shots Fired 433 | . 34 1 . . 38 69 105 . 54 126 6 Gun 239 | . 16 1 . . 15 . 76 . 36 89 6 Cannon 146 | . . . . . 12 50 29 . 18 37 . Launcher 29 | . . . . . 10 19 . . . . . Special 19 | . 18 . . . 1 . . . . . . Kinetic 292 | . 16 1 . . 21 32 76 . 36 110 . Thermal 112 | . 18 . . . 7 18 29 . 18 16 6 Explosive 29 | . . . . . 10 19 . . . . . Electromagnetic . | . . . . . . . . . . . . Robot Hit Streak 40 | . 9 . . . 12 30 34 . 18 40 40 Robot Miss Streak 2 | . 1 . . . 2 1 2 . 1 1 . Penetration Max 1 | . . . . . . . 1 . . 1 . Secondary Targets 1 | . . . . . . . . . . 1 . Max Gunslinging Chain 1 | . . . . . . . . . . 1 . Shots Hit Robots 343 | . 26 . . . 19 58 71 . 46 117 6 Core Hits 147 | . 10 . . . 28 36 24 . 13 34 2 Critical Kills 2 | . 1 . . . . . 1 . . . . Critical Parts Destroyed 17 | . 1 . . . . . 8 . 3 5 . Critical Strikes 30 | . 2 . . . . 6 9 . 3 10 . Destroy 23 | . 2 . . . . . 9 . 3 9 . Blast 7 | . . . . . . 6 . . . 1 . Melee Attacks . | . . . . . . . . . . . . Impact . | . . . . . . . . . . . . Slashing . | . . . . . . . . . . . . Piercing . | . . . . . . . . . . . . Sneak Attacks . | . . . . . . . . . . . . Combat Hostiles . | . . . . . . . . . . . . Follow-up Attacks . | . . . . . . . . . . . . Damage Inflicted 7920 | . 273 . . . 808 2628 1207 . 809 2051 144 Guns 2395 | . 116 . . . 96 . 644 . 351 1044 144 Cannons 3084 | . . . . . 105 951 563 . 458 1007 . Explosions 2260 | . . . . . 583 1677 . . . . . Melee . | . . . . . . . . . . . . Ramming . | . . . . . . . . . . . . Kinetic 3522 | . 116 . . . 149 618 644 . 351 1644 . Thermal 2138 | . 157 . . . 76 333 563 . 458 407 144 Explosive 2260 | . . . . . 583 1677 . . . . . Electromagnetic . | . . . . . . . . . . . . Impact . | . . . . . . . . . . . . Slashing . | . . . . . . . . . . . . Piercing . | . . . . . . . . . . . . Highest Corruption 5 | . . . . 5 . . 2 . . . 1 Average Corruption 2 | . . . . 5 . . 1 . . . 1 Corruption Purged . | . . . . . . . . . . . . Corruption Blocked . | . . . . . . . . . . . . Effects 10 | . . . . 6 . . 4 . . . . Message Errors 4 | . . . . 3 . . 1 . . . . Matter Fused 1 | . . . . 1 . . . . . . . Energy Discharges 1 | . . . . . . . 1 . . . . Parts Fused 1 | . . . . . . . 1 . . . . Data Loss (minor) 2 | . . . . 1 . . 1 . . . . Alerts 1 | . . . . 1 . . . . . . . Overload Shots . | . . . . . . . . . . . . Overflow Damage 163 | . . . . . . 93 25 . . 45 . Projectiles 87 | . . . . . . 17 25 . . 45 . Explosions 76 | . . . . . . 76 . . . . . Melee . | . . . . . . . . . . . . Knockbacks 5 | . . . . . . 1 . . . 4 . Impact . | . . . . . . . . . . . . Kinetic 5 | . . . . . . 1 . . . 4 . Secondary . | . . . . . . . . . . . . Self-Inflicted Damage 277 | . . . . . 13 264 . . . . . Shots 11 | . . . . . 1 10 . . . . . Rammed . | . . . . . . . . . . . . Targets Rammed . | . . . . . . . . . . . . Kicked . | . . . . . . . . . . . . Crushed . | . . . . . . . . . . . . Highest Temperature 472 | . 48 5 . . 278 331 472 . 38 6 156 Average Temperature 112 | . 20 5 . . 128 120 170 . 14 4 95 Received Heat Transfer 1149 | . . . . . 192 144 282 . 24 435 72 Effects 9 | . . . . . 2 5 2 . . . . Shutdowns 1 | . . . . . . 1 . . . . . Energy Bleed 2 | . . . . . . 1 1 . . . . Interference 5 | . . . . . 2 3 . . . . . Matter Decay 1 | . . . . . . . 1 . . . . Siege Activations . | . . . . . . . . . . . . Robots Corrupted . | . . . . . . . . . . . . Combat Hostiles . | . . . . . . . . . . . . Parts Fried . | . . . . . . . . . . . . Impact Corruptions . | . . . . . . . . . . . . Robots Melted . | . . . . . . . . . . . . Combat Hostiles . | . . . . . . . . . . . . Parts Melted 2 | . 1 . . . . . . . 1 . . Heat Transferred 4192 | . 470 . . . 150 650 1050 . 850 800 222 Parts Sabotaged . | . . . . . . . . . . . . Parts Stolen . | . . . . . . . . . . . . Parts Stripped . | . . . . . . . . . . . . Power Chain Reactions . | . . . . . . . . . . . . Missiles Intercepted . | . . . . . . . . . . . . Alert | -11 -10 -10 -10 -9 -8 -8 -7 -6 -6 -6 -6 ------- Run | Jun Mat Min Exi Min Mat Sto Fac Fac Low Low Zio Peak Influence 867 | . 169 46 . . 395 867 238 21 . . . Initial 186 | . . 46 . . . 119 186 21 . . . Average 192 | . 52 46 . . 293 461 124 21 . . . Maximum Alert Level 3 | . . . . . 1 3 1 . . . . Low Security (%) 65 | 100 100 100 . 100 17 7 92 100 . . . Level 1 23 | . . . . . 82 36 7 . . . . Level 2 7 | . . . . . . 36 . . . . . Level 3 3 | . . . . . . 18 . . . . . Level 4 . | . . . . . . . . . . . . Level 5 . | . . . . . . . . . . . . High Security . | . . . . . . . . . . . . Max Security . | . . . . . . . . . . . . Squads Dispatched 13 | . . . . . 1 4 7 . . 1 . Investigation 4 | . . . . . 1 1 2 . . . . Extermination 1 | . . . . . . . 1 . . . . Reinforcement 2 | . . . . . . 1 1 . . . . Assault 3 | . . . . . . 2 . . . 1 . Garrison 3 | . . . . . . . 3 . . . . Intercept . | . . . . . . . . . . . . Searches Triggered . | . . . . . . . . . . . . Construction Impeded . | . . . . . . . . . . . . Haulers Reinforced . | . . . . . . . . . . . . Active Scanning Responses . | . . . . . . . . . . . . Cargo Convoy Interrupts . | . . . . . . . . . . . . Stealth | -11 -10 -10 -10 -9 -8 -8 -7 -6 -6 -6 -6 --------- Run | Jun Mat Min Exi Min Mat Sto Fac Fac Low Low Zio Distress Signals 5 | . 1 . . . 1 2 1 . . . . Communications Jammed . | . . . . . . . . . . . . Distress Signals . | . . . . . . . . . . . . Times Spotted 93 | . 10 2 . . 14 31 16 . 3 13 4 Peak Tracking Total 12 | . 3 2 . . 7 7 6 . 1 12 8 Tactical Retreats 10 | . . . . . . 5 1 . . 3 1 Traps | -11 -10 -10 -10 -9 -8 -8 -7 -6 -6 -6 -6 ------- Run | Jun Mat Min Exi Min Mat Sto Fac Fac Low Low Zio Traps Triggered 3 | . . . . . . 1 2 . . . . Indirectly . | . . . . . . . . . . . . Trap Hack Attempts . | . . . . . . . . . . . . Triggered . | . . . . . . . . . . . . Disarmed 14 | . 4 . . . 6 . 4 . . . . Reprogrammed . | . . . . . . . . . . . . Reused . | . . . . . . . . . . . . Traps Extracted . | . . . . . . . . . . . . Installed . | . . . . . . . . . . . . Triggered 4 | . . . . . . . . . 3 1 . Machines | -11 -10 -10 -10 -9 -8 -8 -7 -6 -6 -6 -6 ---------- Run | Jun Mat Min Exi Min Mat Sto Fac Fac Low Low Zio Machines Disabled 13 | . . . . . 4 7 1 . 1 . . Max in Single Turn 2 | . . . . . 1 2 1 . 1 . . Machines Repaired . | . . . . . . . . . . . . Machines Sabotaged . | . . . . . . . . . . . . Overloaded Fab Kills . | . . . . . . . . . . . . Hacking | -11 -10 -10 -10 -9 -8 -8 -7 -6 -6 -6 -6 --------- Run | Jun Mat Min Exi Min Mat Sto Fac Fac Low Low Zio Machines Accessed 26 | . 4 . 1 1 4 7 9 . . . . Terminals 18 | . 4 . . 1 2 6 5 . . . . Fabricators 2 | . . . . . . . 2 . . . . Repair Stations . | . . . . . . . . . . . . Recycling Units 3 | . . . . . 2 1 . . . . . Scanalyzers 2 | . . . . . . . 2 . . . . Garrison Access . | . . . . . . . . . . . . Total Hacks 63 | . 11 . 1 1 9 11 30 . . . . Successful 47 | . 9 . 1 1 6 9 21 . . . . Failed 16 | . 2 . . . 3 2 9 . . . . Catastrophic . | . . . . . . . . . . . . Database Lockouts . | . . . . . . . . . . . . Manual 2 | . . . 1 . . . . . . . 1 Terminals 43 | . 11 . . 1 7 10 14 . . . . Fabricators 5 | . . . . . . . 5 . . . . Repair Stations . | . . . . . . . . . . . . Recycling Units 3 | . . . . . 2 1 . . . . . Scanalyzers 11 | . . . . . . . 11 . . . . Garrison Access . | . . . . . . . . . . . . Terminal Hacks 33 | . 9 . 1 1 4 8 10 . . . . Record 12 | . 3 . . . 3 3 3 . . . . Open Door 5 | . . . . . . 5 . . . . . Open DSF 1 | . . . . . . . 1 . . . . Level Access Points 1 | . 1 . . . . . . . . . . Branch Access Points 1 | . 1 . . . . . . . . . . Emergency Access Points 1 | . 1 . . . . . . . . . . Unreport Threat 3 | . . . . . . . 3 . . . . Locate Traps 2 | . 1 . . . . . 1 . . . . Disarm Traps 3 | . 1 . . . 1 . 1 . . . . Zone Layout 3 | . 1 . . 1 . . 1 . . . . EX-Prototype ID Bank 1 | . . . 1 . . . . . . . . Fabricator Hacks 3 | . . . . . . . 3 . . . . Network Status 1 | . . . . . . . 1 . . . . Load Schematic 1 | . . . . . . . 1 . . . . Build 1 | . . . . . . . 1 . . . . Repair Station Hacks . | . . . . . . . . . . . . Recycling Unit Hacks 3 | . . . . . 2 1 . . . . . Report Inventory 3 | . . . . . 2 1 . . . . . Scanalyzer 8 | . . . . . . . 8 . . . . Insert Component 4 | . . . . . . . 4 . . . . Analyze 4 | . . . . . . . 4 . . . . Garrison Access Hacks . | . . . . . . . . . . . . Unauthorized Hacks . | . . . . . . . . . . . . Terminals . | . . . . . . . . . . . . Fabricators . | . . . . . . . . . . . . Repair Stations . | . . . . . . . . . . . . Recycling Units . | . . . . . . . . . . . . Scanalyzers . | . . . . . . . . . . . . Garrison Access . | . . . . . . . . . . . . Data Cores Recovered . | . . . . . . . . . . . . Used . | . . . . . . . . . . . . Hacking Detections 14 | . 2 . . 1 2 2 7 . . . . Full Trace Events 4 | . . . . . 1 1 2 . . . . Feedback Events . | . . . . . . . . . . . . Feedback Blocked . | . . . . . . . . . . . . Robot Schematics Acquired . | . . . . . . . . . . . . Robots Built . | . . . . . . . . . . . . Authchips . | . . . . . . . . . . . . Time . | . . . . . . . . . . . . Total Robot Build Rating . | . . . . . . . . . . . . Part Schematics Acquired 4 | . . . . . . . 4 . . . . Parts Built 2 | . . . . . . . 2 . . . . Authchips . | . . . . . . . . . . . . Time 25 | . . . . . . . 25 . . . . Total Part Build Rating 2 | . . . . . . . 2 . . . . Parts Repaired . | . . . . . . . . . . . . Time . | . . . . . . . . . . . . Parts Recycled . | . . . . . . . . . . . . Recycled Matter . | . . . . . . . . . . . . Retrieved Matter . | . . . . . . . . . . . . Retrieved Components . | . . . . . . . . . . . . Parts Scanalyzed 4 | . . . . . . . 4 . . . . Part Schematics Acquired 4 | . . . . . . . 4 . . . . Parts Damaged . | . . . . . . . . . . . . Bothacking | -11 -10 -10 -10 -9 -8 -8 -7 -6 -6 -6 -6 ------------ Run | Jun Mat Min Exi Min Mat Sto Fac Fac Low Low Zio Used RIF Installer . | . . . . . . . . . . . . Robots Hacked . | . . . . . . . . . . . . Non-combat . | . . . . . . . . . . . . Combat . | . . . . . . . . . . . . Robot Hacks Applied . | . . . . . . . . . . . . Relay Couplers Released . | . . . . . . . . . . . . Fabnet Peak Effective % . | . . . . . . . . . . . . Robots Rewired . | . . . . . . . . . . . . Allies Hacked . | . . . . . . . . . . . . Hacks Repelled . | . . . . . . . . . . . . Allies | -11 -10 -10 -10 -9 -8 -8 -7 -6 -6 -6 -6 -------- Run | Jun Mat Min Exi Min Mat Sto Fac Fac Low Low Zio Total Allies 5 | . . . . 3 . 2 . . . . . Largest Group 3 | . . . . 3 3 2 . . . . . Highest-Rated Group 62 | . . . . 40 40 62 . . . . . Highest-Rated Ally 31 | . . . . 16 16 31 . . . . . Total Orders . | . . . . . . . . . . . . Ally Attacks 46 | . . . . . 25 21 . . . . . Total Damage 624 | . . . . . 247 377 . . . . . Kills 5 | . . . . . 3 2 . . . . . Allies Corrupted . | . . . . . . . . . . . . Allies Melted . | . . . . . . . . . . . . Intel | -11 -10 -10 -10 -9 -8 -8 -7 -6 -6 -6 -6 ------- Run | Jun Mat Min Exi Min Mat Sto Fac Fac Low Low Zio Robot Analysis Total . | . . . . . . . . . . . . Derelict Logs Recovered 3 | . . . . . . . . . . 2 1 Drone Launches . | . . . . . . . . . . . . Drone Recoveries . | . . . . . . . . . . . . Exploration | -11 -10 -10 -10 -9 -8 -8 -7 -6 -6 -6 -6 ------------- Run | Jun Mat Min Exi Min Mat Sto Fac Fac Low Low Zio Turns Passed 4114 | 47 309 81 87 140 318 410 627 46 307 476 1266 Spaces Moved 4518 | 39 225 213 213 305 421 405 864 86 650 438 659 Core 15 | 15 . . . . . . . . . . . Treads . | . . . . . . . . . . . . Legs 914 | 24 116 . . . . . . . . 115 659 Wheels . | . . . . . . . . . . . . Hover . | . . . . . . . . . . . . Flight 3589 | . 109 213 213 305 421 405 864 86 650 323 . Fastest Speed 37 | 50 37 37 37 37 50 50 50 37 37 37 120 Average Speed 70 | 93 93 37 37 37 50 50 50 46 37 61 189 Slowest Speed 190 | 120 190 37 37 37 50 50 50 50 37 190 190 Overloaded Moves . | . . . . . . . . . . . . Propulsion Burnouts . | . . . . . . . . . . . . Robots Hopped 10 | . . . . 3 . 2 2 . 3 . . Cave-ins Triggered . | . . . . . . . . . . . . Exploration Rate (%) 47 | 3 58 48 61 67 39 64 24 3 68 47 85 Regions Visited 11 Branch Regions 7 Pre-discovered Areas 1 | . . . . . . . . . . 1 . Known Exits Taken 11 | 1 1 1 1 1 1 1 1 1 1 1 . Unknown Exits Taken . | . . . . . . . . . . . . Scrap Searched 12 | . . 1 . 1 . . . . 3 6 1 Spaces Dug 24 | . . . . . 8 16 . . . . . Terrain Destroyed 224 | . 1 . . . 72 149 . . 2 . . Melee . | . . . . . . . . . . . . Projectile 27 | . 1 . . . 7 19 . . . . . AOE 195 | . . . . . 65 130 . . . . . Terrain Rammed . | . . . . . . . . . . . . Walls Destroyed . | . . . . . . . . . . . . Machines Disabled . | . . . . . . . . . . . . Actions | -11 -10 -10 -10 -9 -8 -8 -7 -6 -6 -6 -6 --------- Run | Jun Mat Min Exi Min Mat Sto Fac Fac Low Low Zio Total 5091 | 49 269 213 221 329 492 542 987 91 680 550 668 Wait 193 | . 2 . . 24 18 69 50 . . 29 1 Move 4487 | 38 224 212 212 298 420 400 859 85 643 437 659 Hop 10 | . . . . 3 . 2 2 . 3 . . Pick Up 48 | 6 9 . 1 2 12 3 3 1 3 6 2 Fast Attach 20 | 1 . . . . 3 6 2 1 3 4 . Attach 29 | 4 4 . 2 1 5 . 3 2 3 5 . Detach 3 | . . . . . . . . 1 1 1 . Swap 17 | . 3 . 2 . 2 1 7 . 1 1 . Drop 45 | . 3 . 4 1 9 10 5 1 5 7 . Fire 221 | . 24 1 . . 23 51 38 . 18 60 6 Melee . | . . . . . . . . . . . . Ram . | . . . . . . . . . . . . Kick . | . . . . . . . . . . . . Crush . | . . . . . . . . . . . . Escape Stasis 18 | . . . . . . . 18 . . . . Rewire . | . . . . . . . . . . . . Trap . | . . . . . . . . . . . . Miscellaneous . | . . . . . . . . . . . . Route ------- -11/Junkyard -10/Materials (discovered 4 exits: *Mat x3 / *Min) -10/Mines -10/Exiles -9/Mines -8/Materials (discovered 2 exits: *Fac / *Sto) -8/Storage -7/Factory -6/Factory -6/Lower Caves -6/Lower Caves (discovered 2 exits: *Fac / *Zio) -6/Zion History --------- Turn | Location | Event 8 | -11/Junkyard | Identified exit to Materials 8 | -11/Junkyard | Discovered exit to Materials (range 15) 48 | -11/Junkyard | Entered Materials 48 | -10/Materials | Evolved 1 slot: Power x1 265 | -10/Materials | Identified exit to Materials 265 | -10/Materials | Discovered exit to Materials (range 12) 289 | -10/Materials | Identified exit to Mines 313 | -10/Materials | Build established: Hacker-Mutant 357 | -10/Materials | Entered Mines 413 | -10/Mines | Assembled infested the area 436 | -10/Mines | Deemed a non-threat by the Exiles lab entrance 436 | -10/Mines | Identified exit to Exiles 436 | -10/Mines | Discovered exit to Exiles (range 5) 438 | -10/Mines | Entered Exiles 449 | -10/Exiles | Met 8R-AWN 454 | -10/Exiles | Met EX-HEX 465 | -10/Exiles | Met EX-BIN 470 | -10/Exiles | Aligned with FarCom system 471 | -10/Exiles | Given EX-Vault access code 480 | -10/Exiles | Opened EX-Vault 490 | -10/Exiles | Found Flying Fortress v7 499 | -10/Exiles | Warned to stay clear of 0b10 Research branches 508 | -10/Exiles | Met EX-DEC 522 | -10/Exiles | Identified exit to Mines 522 | -10/Exiles | Discovered exit to Mines (range 10) 525 | -10/Exiles | Left Exiles lab with Flying Fortress v7 525 | -10/Exiles | Entered Mines 533 | -9/Mines | Found a damaged Exp. Sensor Array with a note attached 534 | -9/Mines | Found Prototype Device 535 | -9/Mines | Identified Exp. Sensor Array 594 | -9/Mines | A weapon hastily lodged in a ceiling crevice suddenly fell to the ground 605 | -9/Mines | Received a Rocket Launcher from a helpful Derelict 632 | -9/Mines | Assisted by bots powering up and referring to "LRC-V3" 640 | -9/Mines | Identified exit to Materials 640 | -9/Mines | Discovered exit to Materials (range 6) 665 | -9/Mines | Entered Materials 665 | -8/Materials | Accompanied by 3 allies 665 | -8/Materials | Evolved 4 slots: Propulsion x2, Utility x2 667 | -8/Materials | Identified exit to Storage 667 | -8/Materials | Discovered exit to Storage (range 8) 800 | -8/Materials | Identified exit to Factory 800 | -8/Materials | Discovered exit to Factory (range 16) 983 | -8/Materials | Entered Storage 1098 | -8/Storage | Met a pair of Derelict thieves 1257 | -8/Storage | Found Prototype Launcher 1257 | -8/Storage | Identified Gui. Missile Launcher 1390 | -8/Storage | Discovered exit to Factory (range 7) 1393 | -8/Storage | Entered Factory 1393 | -7/Factory | Evolved 2 slots: Power x1, Weapon x1 1604 | -7/Factory | Fabricated Structural Scanner? 1703 | -7/Factory | Garrison activated, responded to threat 2007 | -7/Factory | Identified exit to Factory 2007 | -7/Factory | Discovered exit to Factory (range 15) 2014 | -7/Factory | Build established: Hacker-Skirmisher 2020 | -7/Factory | Entered another Factory area 2020 | -6/Factory | Evolved 2 slots: Propulsion x1, Utility x1 2064 | -6/Factory | Identified exit to Lower Caves 2064 | -6/Factory | Discovered exit to Lower Caves (range 5) 2066 | -6/Factory | Entered Lower Caves 2101 | -6/Lower Caves | Encountered a Warlord checkpoint 2125 | -6/Lower Caves | Spotted B-75 Beast 2157 | -6/Lower Caves | Destroyed B-75 Beast 2178 | -6/Lower Caves | Attacked by a delusional Derelict stockpiling Unaware 2348 | -6/Lower Caves | Build established: Hacker-Tank 2348 | -6/Lower Caves | Identified exit to Lower Caves 2348 | -6/Lower Caves | Discovered exit to Lower Caves (range 10) 2373 | -6/Lower Caves | Entered another Lower Caves area 2378 | -6/Lower Caves | Identified exit to Factory 2378 | -6/Lower Caves | Discovered exit to Factory (range 13) 2414 | -6/Lower Caves | Encountered a Warlord checkpoint 2519 | -6/Lower Caves | Spotted B-75 Beast 2572 | -6/Lower Caves | Destroyed B-75 Beast 2601 | -6/Lower Caves | Attracted the attention of an 0b10 outpost 2689 | -6/Lower Caves | Lost 6 parts (1p1n2u2w) 2716 | -6/Lower Caves | Learned location of Zion (-6) 2798 | -6/Lower Caves | Learned Factory emergency access door positions 2806 | -6/Lower Caves | Identified exit to Zion 2806 | -6/Lower Caves | Discovered exit to Zion (range 5) 2849 | -6/Lower Caves | Entered Zion 3013 | -6/Zion | Found GAL Module 3125 | -6/Zion | Build established: Scavenger-Mutant 4058 | -6/Zion | Rebuked by Imprinter 4090 | -6/Zion | Attempted to imprint without authorization 4090 | -6/Zion | Attacked by Zionites 4115 | -6/Zion | Self-destructed Last Messages --------------- 04038_ PUBLIC SERVICE ANNOUNCEMENT: Unaware detected at Zion entryway. Avoid the area unless you're armed and dangerous. Imprinter: Here I was just about to greet a new specimen to our ranks, but no. I can sense their tech three caves away. Get out of here before I'm forced to do something you'll regret. 04090_ IMPRINTER ALERT: Unauthorized bot attempting to interface! Defend our home! 04091_ HI-9I4(c) calibrates the Memory Banks. 04094_ PA-ON5(c) calibrates the Memory Banks. 04096_ HI-9I4(c) calibrates the Memory Banks. 04098_ PA-ON5(c) calibrates the Memory Banks. 04101_ Chain reaction triggered in Lgt. Nuclear Core. 04101_ PA-ON5(c) destroyed. 04101_ Memory Banks disabled. 04101_ Plasma Cannon destroyed. 04105_ Destroyed Lgt. Nuclear Core. 04106_ HI-9I4(c) destroyed. 04110_ Imp. Surge Thruster destroyed. 04114_ IMP:G-0014175/C-0630194 disabled. Map ----- +----------------------------------------------------+ | ?????????????????#""""""#""#"" | | ?????###########?#""""""""""" | | ?????""""""""" #?#" """" | | ????"""""""""" ###" | | ?????" #""" | | ??????"""" ##"" """""""" | | ??????""""" """#"##"""""" " | | ??????""""" """########"""" | | ??????""""" "###??????##"#" | | ??????"""" ###" "#?#??######"#" | | ?????" ###" "#"#?##""#""""" | | ????"""""""""" #""" """#?#""""""" | | ?????""""""""" #""" """###"" """ | | ?????#############" ""###"" | | ???????????#####""# ""#??#"" | | ??????????##"""#### ##"#?##" | | ??????????#" #??#??#"" | | ??????????#" #???###"" | | ??????????#" #??## " | | ??????????## M#### #??# | | ???????????#MMM#??######??#X " | | ???????##### #####??????#### | | ???????""""" """????????#" # | | ?????######"!% ######??????#"" # | | ?????# " " % " #??????"" ## | | ?????# " @ """ #?????#""""" ""#? | | ?????#"""" " " #?????#####"""### | | ?????#""""" """""#?????????##""##" | | ?????#""""" """" #??????????#"##"" | | ?????#" " "" ""#????????###""""" | | ?????#"" """" "" " #????????#"""" | | ?????#""""""" """""" #????????#""" | | ?????#"""" """"""""""#???????##"" | | ?????# " """"" #???????#"" | | ?????? """""""""""" ???????#"#"" | | ??????""""""""" """""????????""#"" | | ????????? """"" ""????????????#"#" " | | ????????????""" "?????????????#?#" """ | | ??????????????? ??????????????#"""""" | | ???????????????????????????????""""#"# | | ??????????????????????????????######## | | ?????????????????????????????????????? | | ?????????????????????????????????????? | | ?????????????????????????????????????? | | ?????????????????????????????????????? | | ?????????????????????????????????????? | | ?????????????????????????????????????? | | ?????????????????????????????????????? | | ?????????????????????????????????????? | | ?????????????????????????????????????? | +----------------------------------------------------+ Best States ------------- Heat Dissipation 118 Energy Generation 43 Energy Capacity 705 Matter Stores 300 Matter Capacity 300 Sight Range 16 Terrain Scan Density 10 Base Temperature (-) 100 Armor Coverage 300 Resistance: KI 35 Resistance: TH 35 Resistance: EX 35 Resistance: EM 35 Resistance: I 35 Resistance: S 35 Resistance: P 35 Propulsion Shielding 66 Evasion (%) 70 Kinecelleration 30 Offensive Hacking 20 Item Schematics ----------------- Structural Scanner | -7/Factory | Scanalyzed Imp. Field Recycling Unit | -7/Factory | Scanalyzed Kinecellerator | -7/Factory | Scanalyzed Hcp. Matter Pod | -7/Factory | Scanalyzed Robot Schematics ------------------ None Fabricated ------------ Structural Scanner | x2 | -7/Factory Alien Tech Used ----------------- None Achievements -------------- None Challenges ------------ None Game ------ Seed SupercompositeGodBattery Manual? 0 Play Time 01:01:42 Cumulative 204.9 hours Start 2024.01.28 @ 18:56:02 End 2024.01.28 @ 19:59:24 Sessions 1 Manual Loads 0 Difficulty Explorer Special Mode None Game No. 152 Rogue 0 Adventurer 102 Explorer 50 Win Type - Total 0 Types 0/0/0/0/0/0/0/0/0 Lore% 49 Gallery% 65 Achievement% 49 Wizard Run 0 Options --------- ASCII 0 Keyboard 0 Movement Mouse Keybinds 0 Fullscreen 0 Font 20/SmallcapsGlow Map View 76x50 Tactical HUD 1 Map Filters NONE Filters NONE Steam 1 RUN: f19bd46f-d6e6-4e77-a230-d659d3643858